Cogmind - Beta 15 @@@ ROGUE MODE // 2025.07.17 @ 22:29:10 Player: Err. String Expected Got Nil Result: Destroyed by C-35 Carver with Carbide Saw Performance ------------- Evolutions (5) 2500 Regions Visited (15) 3000 Robots Destroyed (239) 1195 Value Destroyed (5993) 5993 Prototype IDs (36) 720 Alien Tech Used (0) 0 Bonus (557) 557 TOTAL SCORE: 13965 Bonus ------- High Alert Combat Kills 159 Follower Combat Kills 98 Met Data Miner 300 Cogmind --------- Core Integrity 0/1000 Matter 176/300 Energy 100/100 System Corruption 8% Temperature Cool (0) Movement Core (350) Ox6 Location -5/Factory Parts ------- > --- POWER (1) -------- (None) > --- PROPULSION (5) --- (None) > --- UTILITY (9) ------ Large Storage Unit Advanced Signal Interpreter > --- WEAPON (2) ------- (None) > --- INVENTORY (15) --- Antigrav System Combat Gravmag System Improved Sensor Array Advanced Signal Interpreter Advanced Terrain Scanner Actuator Array Transmission Jammer ECM Suite Layered Light Armor Plating Advanced Plasma Cannon Enhanced Gauss Cannon Precision Rocket Launcher Power Maul Peak State ------------ > --- POWER ------------ F-cell Engine > --- PROPULSION ------- Aerolev Unit Combat Airjet Antigrav System Combat Gravmag System Combat Gravmag System > --- UTILITY ---------- Large Storage Unit Improved Sensor Array Advanced Signal Interpreter Advanced Terrain Scan Processor Improved Melee Analysis Suite Hacking Suite Hacking Suite System Shield Advanced System Restoration Module > --- WEAPON ----------- Power Sword Power Sword > --- INVENTORY -------- Antigrav System Combat Gravmag System Improved Sensor Array Advanced Signal Interpreter Advanced Terrain Scanner Microactuators Actuator Array Transmission Jammer ECM Suite Layered Light Armor Plating Advanced System Restoration Module Phase Cannon Enhanced Gauss Cannon Precision Rocket Launcher Power Maul [Rating: 81] Favorites ----------- Power Cooled Ion Engine Engine Cooled Ion Engine Power Core Micro Nuclear Core Propulsion Light Treads Treads Light Treads Wheel Wheel Hover Unit Aerolev Unit Utility Hacking Suite Device Improved Sensor Array Storage Large Storage Unit Processor Targeting Computer Hackware Hacking Suite Protection Layered Light Armor Plating Weapon Makeshift Sword Energy Gun Improved Medium Laser Energy Cannon Beam Cannon Ballistic Gun Minigun Ballistic Cannon Light Cannon Launcher Improved Grenade Launcher Special Weapon Mining Laser Impact Weapon Power Maul Slashing Weapon Makeshift Sword Build | -11 -10 -10 -9 -9 -9 -8 -8 -8 -7 -6 -6 -6 -6 -5 -5 ------- Run | Yrd Mat Min Mat Min Exi Min Mat Sto Fac Fac Low Low Dat Pro Fac Slots Evolved 10 | . . . 2 . . . 2 . 2 2 . . . . 2 Power . | . . . . . . . . . . . . . . . . Propulsion 3 | . . . 1 . . . . . 2 . . . . . . Utility 7 | . . . 1 . . . 2 . . 2 . . . . 2 Weapon . | . . . . . . . . . . . . . . . . Parts Attached 141 | 7 9 . 31 1 1 3 26 11 22 15 . . . . 15 Power 9 | 1 1 . 2 . . . 1 . 1 2 . . . . 1 Engine 6 | 1 1 . 1 . . . 1 . . 1 . . . . 1 Core 3 | . . . 1 . . . . . 1 1 . . . . . Reactor . | . . . . . . . . . . . . . . . . Propulsion 54 | 2 2 . 14 . . 1 10 7 8 5 . . . . 5 Treads 34 | 2 2 . 14 . . 1 8 7 . . . . . . . Leg . | . . . . . . . . . . . . . . . . Wheel 2 | . . . . . . . 2 . . . . . . . . Hover 18 | . . . . . . . . . 8 5 . . . . 5 Flight . | . . . . . . . . . . . . . . . . Utility 40 | 2 1 . 7 . 1 . 9 1 7 5 . . . . 7 Device 16 | 1 . . . . . . 4 . 3 2 . . . . 6 Storage 4 | 1 1 . 1 . 1 . . . . . . . . . . Processor 8 | . . . 2 . . . 1 . 3 1 . . . . 1 Hackware 4 | . . . 1 . . . . . 1 2 . . . . . Protection 8 | . . . 3 . . . 4 1 . . . . . . . Artifact . | . . . . . . . . . . . . . . . . Weapon 38 | 2 5 . 8 1 . 2 6 3 6 3 . . . . 2 Energy Gun 9 | 1 1 . 3 . . 1 2 1 . . . . . . . Energy Cannon 5 | . 1 . . . . . 1 . 2 1 . . . . . Ballistic Gun 10 | 1 1 . 3 . . 1 2 2 . . . . . . . Ballistic Cannon 2 | . . . 1 . . . . . 1 . . . . . . Launcher 6 | . 1 . . 1 . . 1 . 1 2 . . . . . Special Weapon 1 | . 1 . . . . . . . . . . . . . . Impact Weapon 1 | . . . . . . . . . 1 . . . . . . Slashing Weapon 4 | . . . 1 . . . . . 1 . . . . . 2 Piercing Weapon . | . . . . . . . . . . . . . . . . Special Melee Weapon . | . . . . . . . . . . . . . . . . Unidentified Prototypes 7 | . . . 3 . . . 1 1 1 1 . . . . . Corrupted Parts 1 | . . . . . . . . . . . . . . . 1 System Corruption 2 | . . . . . . . . . . . . . . . 2 Parts Lost 34 | . 1 . 5 . . 2 10 . 1 . . . . . 15 Power 2 | . . . . . . . . . . . . . . . 2 Propulsion 16 | . . . . . . 2 6 . 1 . . . . . 7 Utility 10 | . . . 3 . . . 3 . . . . . . . 4 Weapon 6 | . 1 . 2 . . . 1 . . . . . . . 2 Highest Loss Streak 9 | . 1 . 2 . . 1 4 . 1 . . . . . 9 To Critical Strikes . | . . . . . . . . . . . . . . . . Average Backups 13 | . 7 10 9 12 13 12 18 19 15 14 15 14 14 14 12 Power 1 | . 1 1 1 2 2 2 1 1 1 1 2 1 1 1 . Propulsion 1 | . . 2 2 2 2 . 1 5 . . 1 1 1 1 1 Utility 5 | . 2 3 2 4 4 4 8 8 9 9 9 9 9 9 7 Weapon 4 | . 3 4 4 4 5 6 6 5 3 3 3 3 3 3 3 Tool/Special . | . . . . . . . . . . . . . . . . Unused Backups 25 | . 1 . 5 . 1 . 4 1 5 3 . 1 . . 4 Power 5 | . 1 . 2 . . . . . . 1 . 1 . . . Propulsion 2 | . . . 1 . . . . . . . . . . . 1 Utility 10 | . . . . . 1 . 3 1 3 1 . . . . 1 Weapon 8 | . . . 2 . . . 1 . 2 1 . . . . 2 Tool/Special . | . . . . . . . . . . . . . . . . Average Slot Usage (%) 98 | . 99 100 99 100 100 99 97 99 99 99 100 100 100 100 95 Engine 7 | . 13 14 6 11 11 11 8 9 2 3 6 6 6 6 4 Core 1 | . . . 4 . . . . . 4 2 . . . . . Treads 18 | . 27 28 32 33 33 33 23 27 . . . . . . . Hover 11 | . . . . . . . . . 36 33 33 33 33 33 27 Device 6 | . 14 14 1 . . . 4 4 6 5 6 6 6 6 10 Storage 9 | . 14 14 11 11 11 11 9 9 7 6 6 6 6 6 5 Processor 11 | . . . 7 11 11 11 17 18 14 13 13 13 13 13 16 Hackware 5 | . . . 7 . . . . . 1 19 20 20 20 20 16 Protection 5 | . . . 5 11 11 11 11 13 5 . . . . . . Energy Gun 6 | . 13 14 10 11 11 11 7 2 . . . . . . . Ballistic Gun 7 | . 11 14 10 10 11 10 8 13 . . . . . . . Impact Weapon 1 | . . . . . . . . . 3 5 6 6 6 6 3 Slashing Weapon 3 | . . . . . . . 1 2 10 6 5 6 6 5 5 Peak Build Rating 81 | 9 10 10 20 19 19 21 31 33 53 66 67 65 65 66 81 Average Rating 33 | 5 9 10 17 18 19 20 27 31 50 61 65 65 65 65 71 On Entrance 34 | . 9 10 10 19 19 19 21 30 33 51 65 65 65 65 65 Naked Turns . | . . . . . . . . . . . . . . . . Heaviest Build 62 | 12 20 20 39 39 59 61 61 62 62 39 44 38 38 44 44 Greatest Support 63 | 40 40 40 63 63 63 63 63 60 60 46 46 50 46 50 62 Greatest Overweight (x) 5 | . 3 . . . . . 5 1 1 . . . . . . Average Overweight (x) . | . . . . . . . . . . . . . . . . Largest Inventory Capacity 20 | 8 10 10 15 15 20 20 20 20 20 15 15 15 15 15 15 Average Capacity 14 | 7 8 10 10 15 17 20 20 20 15 15 15 15 15 15 15 Most Carried 20 | 3 10 10 12 13 14 13 20 20 20 15 15 15 14 14 15 Average Carried 13 | . 7 9 9 12 13 12 18 19 14 14 15 14 14 14 12 Final Capacity 20 | 8 10 10 15 15 20 20 20 20 15 15 15 15 15 15 15 Final Carried 20 | 2 10 10 12 13 13 13 20 20 15 15 15 14 14 14 13 Class Distribution -------------------- 50% | Mutant 16% | Hacker-Gladiator 15% | Scavenger-Mutant 9% | Gladiator 3% | Hacker-Scout Dominant Class ---------------- Mutant | -10/Materials Mutant | -10/Mines Scavenger-Mutant | -9/Materials Mutant | -9/Mines Mutant | -9/Exiles Mutant | -8/Mines Mutant | -8/Materials Mutant | -8/Storage Gladiator | -7/Factory Hacker-Gladiator | -6/Factory Hacker-Gladiator | -6/Lower Caves Hacker-Gladiator | -6/Lower Caves Hacker-Gladiator | -6/Data Miner Hacker-Gladiator | -5/Proximity Caves Hacker-Gladiator | -5/Factory Resources | -11 -10 -10 -9 -9 -9 -8 -8 -8 -7 -6 -6 -6 -6 -5 -5 ----------- Run | Yrd Mat Min Mat Min Exi Min Mat Sto Fac Fac Low Low Dat Pro Fac Matter Collected 4910 | 258 491 10 892 87 . 233 1063 707 444 284 119 . . 18 304 Remotely . | . . . . . . . . . . . . . . . . Salvage Created 8392 | 173 662 . 1771 134 . 206 2196 1224 895 553 59 . . . 519 Parts 470 | 16 43 . 121 13 . 17 108 53 45 28 3 . . . 23 Haulers Intercepted 20 | . 2 . 5 . . . 4 3 3 2 . . . . 1 Recyclers Shooed 9 | . 2 . 1 1 . 1 1 1 1 . . . . . 1 Parts Field Recycled . | . . . . . . . . . . . . . . . . Retrieved Matter . | . . . . . . . . . . . . . . . . Parts Self-Destructed . | . . . . . . . . . . . . . . . . Prevented 3 | . . . . . . . . . . . 3 . . . . Kills | -11 -10 -10 -9 -9 -9 -8 -8 -8 -7 -6 -6 -6 -6 -5 -5 ------- Run | Yrd Mat Min Mat Min Exi Min Mat Sto Fac Fac Low Low Dat Pro Fac Combat Hostiles Destroyed 143 | . 13 . 34 5 . 9 37 18 8 11 1 . . . 7 Melee 14 | . . . . . . . 1 . 6 1 . . . . 6 Guns 87 | . 4 . 31 3 . 3 28 18 . . . . . . . AOE 37 | . 9 . 3 2 . 6 8 . 2 7 . . . . . Classes Destroyed 15 | 2 6 . 2 . . . 2 1 1 . . . . . 1 Worker 10 | . . . 2 . . . 5 . 1 1 . . . . 1 Builder 11 | . 3 . 1 1 . . 3 . 2 1 . . . . . Tunneler 11 | 5 1 . 2 . . 1 . . . . . . . . 2 Hauler 20 | . 2 . 5 . . . 4 3 3 2 . . . . 1 Recycler 18 | 1 2 . 3 . . . 4 2 5 . . . . . 1 Operator 10 | . 1 . 4 . . . 2 2 1 . . . . . . Watcher 16 | . 2 . 5 . . . 4 . 2 3 . . . . . Swarmer 48 | . 6 . 14 3 . 6 7 . 5 7 . . . . . Cutter 2 | . . . . . . . . . . . . . . . 2 Grunt 56 | . 7 . 11 2 . 3 18 12 . 3 . . . . . Brawler 4 | . . . . . . . 3 1 . . . . . . . Duelist 1 | . . . . . . . 1 . . . . . . . . Sentry 21 | . . . 9 . . . 8 4 . . . . . . . Hunter 3 | . . . . . . . . 1 1 . 1 . . . . Programmer 8 | . . . . . . . . . 2 1 . . . . 5 Best Kill Streak 7 | 3 4 . 5 5 . 3 7 5 4 5 1 . . . 3 Combat Bots Only 5 | . 3 . 4 4 . 3 5 4 3 4 1 . . . 2 Max Kills in Single Turn 5 | 1 3 . 2 3 . 2 2 1 2 5 1 . . . 1 Gunslinging 1 | . . . 1 . . . 1 . . . . . . . . Exploded 4 | . 3 . 2 2 . 2 2 . 2 4 . . . . . Melee 1 | . . . . . . . 1 . 1 1 . . . . 1 Uniques/NPCs Destroyed . | . . . . . . . . . . . . . . . . Combat | -11 -10 -10 -9 -9 -9 -8 -8 -8 -7 -6 -6 -6 -6 -5 -5 -------- Run | Yrd Mat Min Mat Min Exi Min Mat Sto Fac Fac Low Low Dat Pro Fac Hostile Shots Fired 799 | . 42 . 143 14 . 38 179 91 59 36 3 . . . 194 Missed 235 | . 17 . 38 2 . 9 39 25 21 13 2 . . . 69 Hits 564 | . 25 . 105 12 . 29 140 66 38 23 1 . . . 125 Melee 27 | . . . 3 . . . 1 . . . . . . . 23 Projectile 537 | . 25 . 102 12 . 29 139 66 38 23 1 . . . 102 AOE 1 | . . . . . . . . . . . . . . . 1 Critical Strikes 34 | . . . 1 . . 1 7 2 3 1 . . . . 19 Part Disruptions 1 | . . . . . . . . . 1 . . . . . . Damage Taken 9056 | . 306 . 1349 181 . 429 2133 987 608 378 16 . . . 2669 Core 1659 | . 28 . 171 39 . 13 182 90 89 44 . . . . 1003 Absorbed by Shields . | . . . . . . . . . . . . . . . . Regen/Repaired (Parts) 695 | . . . 103 . . . 442 . 73 . . . . . 77 Core Remaining (%) 77 | 100 . 88 . . . 44 . 50 87 . . . . 94 . Volleys Fired 492 | 16 57 . 137 13 . 20 153 80 6 4 1 . . 3 2 Largest 2 | 2 2 . 2 2 . 2 2 2 1 1 1 . . 1 1 Hottest 110 | 60 110 . 86 79 . 102 102 86 90 85 85 . . 85 85 Shots Fired 919 | 32 99 . 262 16 . 37 297 160 6 4 1 . . 3 2 Gun 853 | 32 79 . 253 15 . 33 281 160 . . . . . . . Cannon 27 | . 8 . 7 . . . . . 5 1 1 . . 3 2 Launcher 34 | . 7 . 2 1 . 4 16 . 1 3 . . . . . Special 5 | . 5 . . . . . . . . . . . . . . Kinetic 506 | 16 37 . 142 12 . 16 138 142 3 . . . . . . Thermal 379 | 16 55 . 118 3 . 17 143 18 2 1 1 . . 3 2 Explosive 34 | . 7 . 2 1 . 4 16 . 1 3 . . . . . Electromagnetic . | . . . . . . . . . . . . . . . . Robot Hit Streak 28 | 8 7 . 28 7 . 9 17 20 . . . . . . . Robot Miss Streak 5 | 2 4 . 5 1 . 2 5 2 . 4 . . . . . Penetration Max . | . . . . . . . . . . . . . . . . Secondary Targets 10 | . 1 . 3 . . . 4 2 . . . . . . . Max Gunslinging Chain 1 | . 1 . 1 . . . 1 1 . . . . . . . Shots Hit Robots 697 | 23 56 . 166 12 . 24 197 109 48 24 2 . . . 36 Core Hits 315 | 7 38 . 74 10 . 14 91 43 18 12 . . . . 8 Critical Kills 2 | . . . . . . . . . . . . . . . 2 Critical Parts Destroyed 21 | . . . . . . . 3 . 2 3 . . . . 13 Critical Strikes 54 | . 1 . 12 1 . 1 11 3 6 3 . . . . 16 Burn 26 | . 1 . 12 1 . 1 8 3 . . . . . . . Destroy 3 | . . . . . . . 3 . . . . . . . . Smash 20 | . . . . . . . . . 2 3 . . . . 15 Sever 5 | . . . . . . . . . 4 . . . . . 1 Melee Attacks 300 | . . . 5 . . . 15 6 108 82 5 . . 4 75 Impact 101 | . . . . . . . . . 7 38 3 . . 3 50 Slashing 199 | . . . 5 . . . 15 6 101 44 2 . . 1 25 Piercing . | . . . . . . . . . . . . . . . . Sneak Attacks 28 | . . . . . . . 2 . 16 4 . . . . 6 Combat Hostiles . | . . . . . . . . . . . . . . . . Follow-up Attacks 18 | . . . . . . . . . 8 8 . . . . 2 Damage Inflicted 18538 | 272 1188 25 2831 339 . 700 4794 1942 2610 1744 96 . . . 1997 Guns 9187 | 272 634 . 2492 195 . 400 3252 1942 . . . . . . . Cannons 175 | . 102 . 73 . . . . . . . . . . . . Explosions 2816 | . 438 . 195 139 . 287 1189 . 64 504 . . . . . Melee 6182 | . . . 47 . . . 256 . 2546 1240 96 . . . 1997 Ramming 178 | . 14 25 24 5 . 13 97 . . . . . . . . Kinetic 5386 | 152 312 . 1324 162 . 177 1537 1722 . . . . . . . Thermal 3976 | 120 424 . 1241 33 . 223 1715 220 . . . . . . . Explosive 2816 | . 438 . 195 139 . 287 1189 . 64 504 . . . . . Electromagnetic . | . . . . . . . . . . . . . . . . Impact 2697 | . . . . . . . . . 254 733 57 . . . 1653 Slashing 3485 | . . . 47 . . . 256 . 2292 507 39 . . . 344 Piercing . | . . . . . . . . . . . . . . . . Highest Corruption 16 | . . . 4 4 4 4 . . 2 3 3 3 3 3 16 Average Corruption 4 | . . . 4 4 4 4 . . 1 2 3 3 3 3 8 Corruption Purged 19 | . . . . . . . . . 2 . . . . . 17 Corruption Blocked . | . . . . . . . . . . . . . . . . Effects 125 | . . . 50 8 6 14 . . 2 10 5 4 . 2 24 Message Errors 33 | . . . 13 2 2 4 . . 1 2 1 . . 1 7 Matter Fused 36 | . . . 13 5 1 4 . . . 2 1 . . 1 9 Heat Flow Errors 17 | . . . 5 . . 2 . . . 2 . 3 . . 5 Energy Discharges 12 | . . . 5 . 1 2 . . 1 2 1 . . . . Parts Rejected 1 | . . . . . . 1 . . . . . . . . . Parts Fused 3 | . . . 2 . . . . . . . . 1 . . . Data Loss (minor) 11 | . . . 4 . . . . . . 2 2 . . . 3 Data Loss (major) 5 | . . . 3 1 . 1 . . . . . . . . . Misfires 2 | . . . 2 . . . . . . . . . . . . Alerts 2 | . . . . . 2 . . . . . . . . . . Weapon Failures 3 | . . . 3 . . . . . . . . . . . . Overload Shots 1 | . . . . . . . . . 1 . . . . . . Overflow Damage 2099 | . 14 . 23 . . 31 115 . 557 343 22 . . . 994 Projectiles 11 | . 11 . . . . . . . . . . . . . . Explosions 105 | . 3 . 23 . . 31 30 . . 18 . . . . . Melee 1983 | . . . . . . . 85 . 557 325 22 . . . 994 Knockbacks 16 | . . . . . . . 1 . 1 5 1 . . . 8 Impact 14 | . . . . . . . 1 . 1 4 1 . . . 7 Kinetic . | . . . . . . . . . . . . . . . . Secondary 2 | . . . . . . . . . . 1 . . . . 1 Self-Inflicted Damage 160 | . 33 . 44 24 . 38 21 . . . . . . . . Shots 9 | . 3 . 2 1 . 2 1 . . . . . . . . Rammed 27 | . 3 6 6 1 . 2 9 . . . . . . . . Targets Rammed 30 | . 3 6 8 1 . 2 10 . . . . . . . . Kicked . | . . . . . . . . . . . . . . . . Crushed 3 | . . . 2 . . . 1 . . . . . . . . Highest Temperature 411 | . 164 . 220 64 . 295 411 250 56 200 30 265 . 60 272 Average Temperature 72 | . 42 . 45 38 . 110 97 61 18 83 18 133 . 27 108 Received Heat Transfer 2454 | . 123 . 447 84 . 180 1008 477 . 81 . . . . 54 Effects 2 | . . . . . . . 2 . . . . . . . . Energy Bleed 2 | . . . . . . . 2 . . . . . . . . Siege Activations . | . . . . . . . . . . . . . . . . Martial Activations . | . . . . . . . . . . . . . . . . Shielding Activations . | . . . . . . . . . . . . . . . . Robots Disrupted . | . . . . . . . . . . . . . . . . Combat Hostiles . | . . . . . . . . . . . . . . . . Robots Corrupted 9 | . . . . . . . . . . 5 1 . . . 3 Combat Hostiles 5 | . . . . . . . . . . 3 1 . . . 1 Parts Fried 11 | . . . . . . . 3 . 1 1 2 . . . 4 Impact Corruptions 54 | . . . . . . . 1 . 7 14 1 . . . 31 Robots Melted . | . . . . . . . . . . . . . . . . Combat Hostiles . | . . . . . . . . . . . . . . . . Parts Melted 24 | . 4 . 10 . . . 6 3 1 . . . . . . Heat Transferred 10771 | 275 1246 . 3774 148 . 555 4144 629 . . . . . . . Parts Sabotaged . | . . . . . . . . . . . . . . . . Parts Stolen . | . . . . . . . . . . . . . . . . Parts Stripped . | . . . . . . . . . . . . . . . . Power Chain Reactions . | . . . . . . . . . . . . . . . . Alert | -11 -10 -10 -9 -9 -9 -8 -8 -8 -7 -6 -6 -6 -6 -5 -5 ------- Run | Yrd Mat Min Mat Min Exi Min Mat Sto Fac Fac Low Low Dat Pro Fac Maximum Alert Level 2 | . . . 2 1 . . 2 2 1 . . . . . 1 Low Security (%) 72 | 100 100 100 51 29 . 100 41 18 99 100 . . . . 61 Level 1 17 | . . . 31 70 . . 15 77 . . . . . . 38 Level 2 10 | . . . 17 . . . 43 3 . . . . . . . Level 3 . | . . . . . . . . . . . . . . . . Level 4 . | . . . . . . . . . . . . . . . . Level 5 . | . . . . . . . . . . . . . . . . High Security . | . . . . . . . . . . . . . . . . Max Security . | . . . . . . . . . . . . . . . . Peak Influence 598 | 10 159 . 433 290 . 96 598 411 201 190 . . . . 305 Initial 300 | . . . . 160 . . . 195 181 80 . . . . 300 Average 155 | 2 56 . 228 221 . 25 289 284 77 118 . . . . 179 Influence Increases 5816 | 30 451 . 1143 160 . 268 1284 610 631 526 30 . . 15 668 Destroy 0b10 Robot/C 2940 | . 260 . 720 120 . 180 740 380 160 220 20 . . . 140 Destroy 0b10 Robot/NC 485 | 30 55 . 110 5 . 5 110 35 75 35 . . . . 25 Destroy Leader 774 | . 68 . 200 20 . 30 206 96 62 50 10 . . . 32 Allied During Kill 70 | . . . 5 3 . . . 36 26 . . . . . . Successful Hack 282 | . 16 . 31 . . . 35 28 55 69 . . . . 48 Disable Machine 195 | . 15 . 15 . . . 90 30 15 15 . . . . 15 Destroy Structure 335 | . 37 . 17 12 . 38 73 5 43 62 . . . . 48 Advance Influence 300 | . . . . . . . . . . . . . . . 300 Partial Spotted 135 | . . . . . . . . . 75 15 . . . . 45 Lose Combat Pursuer 300 | . . . 45 . . 15 30 . 120 60 . . . 15 15 Influence Decreases 5784 | 30 451 . 731 412 160 268 822 673 865 595 126 . . 15 636 Entered New Map 1018 | . . . . 252 160 . . 267 218 85 36 . . . . Time Decay 4136 | 30 441 . 661 160 . 258 572 386 527 510 90 . . 15 486 Lost Part 330 | . 10 . 50 . . 10 100 . 10 . . . . . 150 Lost Ally 150 | . . . 20 . . . . 20 110 . . . . . . Purge Threat 150 | . . . . . . . 150 . . . . . . . . Squads Dispatched 41 | . 2 . 4 1 . . 10 3 8 7 . . . . 6 Investigation 11 | . 1 . 1 . . . 2 1 2 3 . . . . 1 Extermination 9 | . . . . . . . . . 4 2 . . . . 3 Reinforcement 13 | . 1 . 3 1 . . 1 1 2 2 . . . . 2 Assault . | . . . . . . . . . . . . . . . . Garrison 8 | . . . . . . . 7 1 . . . . . . . Intercept . | . . . . . . . . . . . . . . . . Searches Triggered . | . . . . . . . . . . . . . . . . Data Miner Redirects 1 | . . . . . . . . . . . . . . . 1 Construction Impeded 3 | . . . . 1 . . 1 . . 1 . . . . . Haulers Reinforced 1 | . . . . . . . . . 1 . . . . . . Active Scanning Responses . | . . . . . . . . . . . . . . . . Cargo Convoy Interrupts . | . . . . . . . . . . . . . . . . Stealth | -11 -10 -10 -9 -9 -9 -8 -8 -8 -7 -6 -6 -6 -6 -5 -5 --------- Run | Yrd Mat Min Mat Min Exi Min Mat Sto Fac Fac Low Low Dat Pro Fac Distress Signals 18 | . . . 2 . . . 8 3 2 . . . . 1 2 Communications Jammed 9 | . . . . . . . . . . . . . . . 9 Distress Signals 9 | . . . . . . . . . . . . . . . 9 Times Spotted 238 | . 24 . 48 6 . 10 52 27 21 23 1 . . . 26 Peak Tracking Total 12 | . 5 . 4 4 . 3 5 5 4 4 1 . . 2 12 Tactical Retreats 19 | . . . 2 . . 1 2 . 6 3 . . . 1 4 Traps | -11 -10 -10 -9 -9 -9 -8 -8 -8 -7 -6 -6 -6 -6 -5 -5 ------- Run | Yrd Mat Min Mat Min Exi Min Mat Sto Fac Fac Low Low Dat Pro Fac Traps Triggered 11 | . 4 . 1 . . . 1 1 3 . . . . . 1 Indirectly . | . . . . . . . . . . . . . . . . Trap Hack Attempts . | . . . . . . . . . . . . . . . . Triggered . | . . . . . . . . . . . . . . . . Disarmed . | . . . . . . . . . . . . . . . . Reprogrammed . | . . . . . . . . . . . . . . . . Reused . | . . . . . . . . . . . . . . . . Traps Extracted . | . . . . . . . . . . . . . . . . Installed . | . . . . . . . . . . . . . . . . Triggered . | . . . . . . . . . . . . . . . . Machines | -11 -10 -10 -9 -9 -9 -8 -8 -8 -7 -6 -6 -6 -6 -5 -5 ---------- Run | Yrd Mat Min Mat Min Exi Min Mat Sto Fac Fac Low Low Dat Pro Fac Machines Disabled 13 | . 1 . 1 . . . 6 2 1 1 . . . . 1 Max in Single Turn 1 | . 1 . 1 . . . 1 1 1 1 . . . . 1 Garrison Access 4 | . . . . . . . . . 1 2 . . . . 1 Machines Repaired . | . . . . . . . . . . . . . . . . Machines Dismantled . | . . . . . . . . . . . . . . . . Machines Sabotaged . | . . . . . . . . . . . . . . . . Overloaded Fab Kills . | . . . . . . . . . . . . . . . . Hacking | -11 -10 -10 -9 -9 -9 -8 -8 -8 -7 -6 -6 -6 -6 -5 -5 --------- Run | Yrd Mat Min Mat Min Exi Min Mat Sto Fac Fac Low Low Dat Pro Fac Machines Accessed 79 | . 5 . 11 . 1 . 11 5 19 14 . . 3 . 10 Terminals 51 | . 5 . 9 . . . 9 4 10 8 . . . . 6 Fabricators 5 | . . . . . . . . . 3 2 . . . . . Repair Stations 8 | . . . 2 . . . 2 . 1 1 . . . . 2 Recycling Units 6 | . . . . . . . . 1 3 1 . . . . 1 Scanalyzers 1 | . . . . . . . . . 1 . . . . . . Garrison Access 4 | . . . . . . . . . 1 2 . . . . 1 Total Hacks 269 | . 14 . 28 . 1 . 33 10 47 53 . . 23 . 60 Successful 183 | . 10 . 21 . 1 . 21 7 24 38 . . 23 . 38 Failed 85 | . 4 . 6 . . . 12 3 23 15 . . . . 22 Catastrophic 11 | . . . . . . . 1 2 5 1 . . . . 2 Database Lockouts 1 | . . . 1 . . . . . . . . . . . . Manual 128 | . 13 . 18 . . . 22 5 20 22 . . . . 28 Terminals 180 | . 14 . 24 . . . 27 8 24 39 . . . . 44 Fabricators 14 | . . . . . . . . . 9 5 . . . . . Repair Stations 27 | . . . 4 . . . 6 . 4 3 . . . . 10 Recycling Units 11 | . . . . . . . . 2 5 1 . . . . 3 Scanalyzers 3 | . . . . . . . . . 3 . . . . . . Garrison Access 10 | . . . . . . . . . 2 5 . . . . 3 Terminal Hacks 85 | . 2 . 9 . 1 . 8 1 3 20 . . 23 . 18 Record 3 | . . . . . 1 . . . . . . . 2 . . Part Schematic 16 | . . . 1 . . . . . . 2 . . 10 . 3 Robot Schematic 8 | . . . . . . . . . . . . . 8 . . Robot Analysis 2 | . . . . . . . . . . 1 . . . . 1 Prototype ID Bank 12 | . . . 1 . . . 1 . 2 3 . . 3 . 2 Open Door 1 | . . . . . . . . 1 . . . . . . . Branch Access Points 2 | . . . 1 . . . . . . . . . . . 1 Machine Index 1 | . . . . . . . . . . 1 . . . . . Terminal Index 4 | . 1 . 1 . . . 1 . . 1 . . . . . Fabricator Index 1 | . . . . . . . . . . 1 . . . . . Repair Station Index 1 | . . . . . . . . . . 1 . . . . . Alert Level 4 | . . . 1 . . . 2 . . 1 . . . . . Unreport Threat 1 | . . . . . . . 1 . . . . . . . . Locate Traps 9 | . . . . . . . 1 . . 4 . . . . 4 Security Status 1 | . . . . . . . . . . . . . . . 1 Transport Status 4 | . . . 1 . . . 1 . . 1 . . . . 1 Recall Extermination 1 | . . . . . . . . . . 1 . . . . . Hauler Manifests 3 | . . . 1 . . . . . . 1 . . . . 1 Registered Components 2 | . . . 1 . . . . . . 1 . . . . . Registered Prototypes 2 | . . . . . . . . . . 1 . . . . 1 Zone Layout 7 | . 1 . 1 . . . 1 . 1 . . . . . 3 Fabricator Hacks 7 | . . . . . . . . . 3 4 . . . . . Network Status 1 | . . . . . . . . . 1 . . . . . . Load Schematic 3 | . . . . . . . . . 1 2 . . . . . Build 3 | . . . . . . . . . 1 2 . . . . . Repair Station Hacks 19 | . . . 4 . . . 4 . 4 1 . . . . 6 Scan Component 10 | . . . 2 . . . 2 . 2 1 . . . . 3 Repair 9 | . . . 2 . . . 2 . 2 . . . . . 3 Recycling Unit Hacks 4 | . . . . . . . . 1 2 . . . . . 1 Retrieve Components 4 | . . . . . . . . 1 2 . . . . . 1 Scanalyzer 2 | . . . . . . . . . 2 . . . . . . Insert Component 1 | . . . . . . . . . 1 . . . . . . Analyze 1 | . . . . . . . . . 1 . . . . . . Garrison Access Hacks 4 | . . . . . . . . . 1 2 . . . . 1 Seal Access 4 | . . . . . . . . . 1 2 . . . . 1 Unauthorized Hacks 61 | . 8 . 8 . . . 9 5 9 11 . . . . 11 Terminals 56 | . 8 . 8 . . . 8 4 9 9 . . . . 10 Track 2 | . . . . . . . . . . . . . . . 2 Assimilate 2 | . . . . . . . . . 1 1 . . . . . Botnet 13 | . 2 . 2 . . . 1 1 2 2 . . . . 3 Operators 5 | . 1 . 1 . . . 1 . 1 1 . . . . . Skim 34 | . 5 . 5 . . . 6 3 5 5 . . . . 5 Fabricators 1 | . . . . . . . . . . 1 . . . . . Prioritize 1 | . . . . . . . . . . 1 . . . . . Repair Stations 1 | . . . . . . . 1 . . . . . . . . Patch 1 | . . . . . . . 1 . . . . . . . . Recycling Units 3 | . . . . . . . . 1 . 1 . . . . 1 Recyclers 3 | . . . . . . . . 1 . 1 . . . . 1 Scanalyzers . | . . . . . . . . . . . . . . . . Garrison Access . | . . . . . . . . . . . . . . . . Data Cores Recovered 5 | . . . 1 . . . 2 1 1 . . . . . . Used . | . . . . . . . . . . . . . . . . Hacking Detections 63 | . 5 . 9 . . . 9 4 18 12 . . . . 6 Full Trace Events 5 | . . . . . . . . . 1 3 . . . . 1 Feedback Events . | . . . . . . . . . . . . . . . . Feedback Blocked . | . . . . . . . . . . . . . . . . Robot Schematics Acquired 8 | . . . . . . . . . . . . . 8 . . Robots Built . | . . . . . . . . . . . . . . . . Authchips . | . . . . . . . . . . . . . . . . Time . | . . . . . . . . . . . . . . . . Total Robot Build Rating . | . . . . . . . . . . . . . . . . Part Schematics Acquired 17 | . . . 1 . . . . . 1 2 . . 10 . 3 Parts Built 4 | . . . . . . . . . 1 3 . . . . . Authchips . | . . . . . . . . . . . . . . . . Time 230 | . . . . . . . . . 116 114 . . . . . Total Part Build Rating 17 | . . . . . . . . . 3 14 . . . . . Parts Repaired 9 | . . . 2 . . . 2 . 2 . . . . . 3 Time 452 | . . . 52 . . . 95 . 111 . . . . . 194 Parts Recycled . | . . . . . . . . . . . . . . . . Recycled Matter . | . . . . . . . . . . . . . . . . Retrieved Matter . | . . . . . . . . . . . . . . . . Retrieved Components 15 | . . . . . . . . 3 12 . . . . . . Parts Scanalyzed 1 | . . . . . . . . . 1 . . . . . . Part Schematics Acquired 1 | . . . . . . . . . 1 . . . . . . Parts Damaged . | . . . . . . . . . . . . . . . . Bothacking | -11 -10 -10 -9 -9 -9 -8 -8 -8 -7 -6 -6 -6 -6 -5 -5 ------------ Run | Yrd Mat Min Mat Min Exi Min Mat Sto Fac Fac Low Low Dat Pro Fac Used RIF Installer . | . . . . . . . . . . . . . . . . Robots Hacked . | . . . . . . . . . . . . . . . . Non-combat . | . . . . . . . . . . . . . . . . Combat . | . . . . . . . . . . . . . . . . Robot Hacks Applied . | . . . . . . . . . . . . . . . . Relay Couplers Released . | . . . . . . . . . . . . . . . . Fabnet Peak Effective % . | . . . . . . . . . . . . . . . . Robots Rewired . | . . . . . . . . . . . . . . . . Allies Hacked . | . . . . . . . . . . . . . . . . Hacks Repelled . | . . . . . . . . . . . . . . . . Allies | -11 -10 -10 -9 -9 -9 -8 -8 -8 -7 -6 -6 -6 -6 -5 -5 -------- Run | Yrd Mat Min Mat Min Exi Min Mat Sto Fac Fac Low Low Dat Pro Fac Total Allies 14 | . . 1 . 1 . . . 10 1 1 . . . . . Largest Group 10 | . . 1 1 1 1 . . 10 9 1 . . . . . Highest-Rated Group 173 | . . 31 31 31 31 . . 173 157 26 . . . . . Highest-Rated Ally 31 | . . 31 31 31 31 . . 29 29 26 . . . . . Total Orders . | . . . . . . . . . . . . . . . . Ally Attacks 55 | . . . 5 10 . . . 10 30 . . . . . . Total Damage 696 | . . . 85 189 . . . 141 281 . . . . . . Kills 5 | . . . 2 1 . . . 1 1 . . . . . . Allies Corrupted . | . . . . . . . . . . . . . . . . Allies Melted . | . . . . . . . . . . . . . . . . Intel | -11 -10 -10 -9 -9 -9 -8 -8 -8 -7 -6 -6 -6 -6 -5 -5 ------- Run | Yrd Mat Min Mat Min Exi Min Mat Sto Fac Fac Low Low Dat Pro Fac Active Infowar (turns) 10113 | 1 2007 844 431 . . . 1241 489 1887 1365 205 185 35 210 1213 Sensors 6640 | . . . . . . . 1241 489 1825 1335 171 185 35 210 1149 Terrain 3970 | 1 2007 844 431 . . . . . 62 . 18 . . . 607 Jamming 10 | . . . . . . . . . . . . . . . 10 ECM 287 | . . . . . . . . . . 30 16 . . . 241 Robot Analysis Total 2 | . . . . . . . . . . 1 . . . . 1 Derelict Logs Recovered 5 | . . 1 . . . . . . . . 1 2 . 1 . Drone Launches . | . . . . . . . . . . . . . . . . Drone Recoveries . | . . . . . . . . . . . . . . . . Exploration | -11 -10 -10 -9 -9 -9 -8 -8 -8 -7 -6 -6 -6 -6 -5 -5 ------------- Run | Yrd Mat Min Mat Min Exi Min Mat Sto Fac Fac Low Low Dat Pro Fac Turns Passed 15733 | 141 2007 844 2741 320 250 829 2317 906 2063 1398 214 185 35 210 1273 Spaces Moved 11359 | 54 858 521 1352 173 156 473 1034 309 2421 1635 372 365 82 369 1185 Core 6 | 5 1 . . . . . . . . . . . . . . Treads 4728 | 49 857 521 1352 173 156 473 829 309 9 . . . . . . Legs . | . . . . . . . . . . . . . . . . Wheels 205 | . . . . . . . 205 . . . . . . . . Hover 6420 | . . . . . . . . . 2412 1635 372 365 82 369 1185 Flight . | . . . . . . . . . . . . . . . . Fastest Speed 34 | 50 160 160 160 160 160 160 110 160 34 36 42 36 42 36 42 Average Speed 92 | 149 160 160 160 160 160 160 155 192 36 39 42 41 42 41 48 Slowest Speed 320 | 160 200 160 160 160 160 160 320 240 240 42 42 42 42 42 74 Overloaded Moves 7 | . . . . . . . . . . . . 2 . 5 . Propulsion Burnouts . | . . . . . . . . . . . . . . . . Robots Hopped . | . . . . . . . . . . . . . . . . Potential Cave-ins . | . . . . . . . . . . . . . . . . Cave-ins Triggered . | . . . . . . . . . . . . . . . . Exploration Rate (%) 61 | 4 91 99 95 30 54 97 74 54 58 42 64 63 72 57 34 Regions Visited 15 Branch Regions 9 Pre-discovered Areas 14 | . 4 . 2 1 1 . . . 1 1 . . 1 . 3 Known Exits Taken 10 | . . . 1 . . 1 1 1 1 1 1 1 1 1 . Unknown Exits Taken 5 | 1 1 1 . 1 1 . . . . . . . . . . Scrap Searched 12 | . . 1 . 1 . 1 . . . . 3 3 . 3 . Spaces Dug 119 | . 2 . 3 . . . 10 4 36 36 3 . . 3 22 Terrain Destroyed 330 | . 49 . 13 12 . 39 77 4 43 60 3 . . 6 24 Melee 105 | . . . 3 . . . 2 4 33 36 2 . . 3 22 Projectile 14 | . 2 . . . . . . . 5 1 1 . . 3 2 AOE 211 | . 47 . 10 12 . 39 75 . 5 23 . . . . . Terrain Rammed . | . . . . . . . . . . . . . . . . Walls Destroyed . | . . . . . . . . . . . . . . . . Machines Disabled . | . . . . . . . . . . . . . . . . Actions | -11 -10 -10 -9 -9 -9 -8 -8 -8 -7 -6 -6 -6 -6 -5 -5 --------- Run | Yrd Mat Min Mat Min Exi Min Mat Sto Fac Fac Low Low Dat Pro Fac Total 15288 | 79 1374 528 1668 199 157 506 1442 494 3502 2281 418 396 81 413 1750 Wait 2678 | . 412 . 82 10 . . 144 62 901 529 34 31 . 37 436 Move 11344 | 53 857 520 1351 172 155 472 1033 308 2420 1634 371 364 81 368 1185 Hop . | . . . . . . . . . . . . . . . . Pick Up 95 | 3 11 1 17 1 . 2 24 7 13 10 . . . . 6 Fast Attach 54 | 6 7 . 4 . . 1 12 1 10 3 . . . . 10 Attach 38 | 1 2 . 6 . . 3 9 . 8 2 . . . . 7 Detach 10 | . 1 . 1 . . 1 2 . 4 . . . . . 1 Swap 168 | . 18 . 28 2 1 5 22 15 23 19 8 . . 2 25 Drop 109 | . 6 1 29 . 1 . 18 15 21 16 . 1 . . 1 Fire 492 | 16 57 . 137 13 . 20 153 80 6 4 1 . . 3 2 Melee 260 | . . . 5 . . . 15 6 96 64 4 . . 3 67 Ram . | . . . . . . . . . . . . . . . . Kick . | . . . . . . . . . . . . . . . . Crush 30 | . 3 6 8 1 . 2 10 . . . . . . . . Escape Stasis 10 | . . . . . . . . . . . . . . . 10 Rewire . | . . . . . . . . . . . . . . . . Trap . | . . . . . . . . . . . . . . . . Miscellaneous . | . . . . . . . . . . . . . . . . Route ------- -11/Scrapyard -10/Materials (discovered 4 exits: *Mat x3 / [*Min]) -10/Mines (discovered 3 exits: *Mat x2 / [*Sub]) -9/Materials (discovered 5 exits: *Mat x3 / *Min x2) -9/Mines (discovered 2 exits: *Mat / *Exi) -9/Exiles -8/Mines (discovered 2 exits: *Mat x2) -8/Materials (discovered 4 exits: *Fac x2 / *Sto x2) -8/Storage -7/Factory (discovered 2 exits: *Fac / Low) -6/Factory (discovered 6 exits: *Fac x4 / *Low x2) -6/Lower Caves -6/Lower Caves (discovered 2 exits: *Fac / *Dat) -6/Data Miner -5/Proximity Caves -5/Factory (discovered 6 exits: *Fac x2 / Upp x2 / *Ext x2) History --------- Turn | Location | Event 12 | -11/Scrapyard | Discovered new exit (range 13) 142 | -11/Scrapyard | Entered Materials 303 | -10/Materials | Build established: Mutant 403 | -10/Materials | Discovered new exit (range 4) 1123 | -10/Materials | Discovered new exit (range 5) 1295 | -10/Materials | Discovered new exit (range 10) 1751 | -10/Materials | Discovered new exit (range 8) 1893 | -10/Materials | Learned location of Mines (-10) 1954 | -10/Materials | Learned Storage stockpile data 2004 | -10/Materials | Learned Recycling recycling unit intel 2064 | -10/Materials | Learned location of Storage (-8) 2149 | -10/Materials | Entered Mines 2265 | -10/Mines | A weapon hastily lodged in a ceiling crevice suddenly fell to the ground 2442 | -10/Mines | Learned location of 1 exit from Materials 2602 | -10/Mines | Discovered new exit (range 16) 2649 | -10/Mines | Discovered new exit (range 8) 2977 | -10/Mines | Discovered new exit (range 11) 2978 | -10/Mines | Received a Mining Laser from a helpful Derelict 2993 | -10/Mines | Entered Materials 2993 | -9/Materials | Accompanied by 1 ally 2993 | -9/Materials | Evolved 2 slots: Propulsion x1, Utility x1 2994 | -9/Materials | Identified exit to Materials 3200 | -9/Materials | Repaired Grenade Launcher 3294 | -9/Materials | Build established: Scavenger-Mutant 3908 | -9/Materials | Discovered new exit (range 8) 4183 | -9/Materials | Central database locked down 4186 | -9/Materials | Build established: Mutant 4226 | -9/Materials | Learned Recycling recycling unit intel 4282 | -9/Materials | Learned 2 Storage zone layouts 4300 | -9/Materials | Learned location of 1 exit from Recycling 4306 | -9/Materials | Learned Storage emergency access door positions 4342 | -9/Materials | Identified exit to Mines 4483 | -9/Materials | Repaired Lgt. Treads 4594 | -9/Materials | Discovered exit to Materials (range 15) 4774 | -9/Materials | Build established: Scavenger-Mutant 5377 | -9/Materials | Build established: Mutant 5734 | -9/Materials | Entered Mines 5741 | -9/Mines | Received a Rocket Launcher from a helpful Derelict 5758 | -9/Mines | Discovered exit to Materials (range 8) 5778 | -9/Mines | Escorted by a lone wolf Derelict 5796 | -9/Mines | Core integrity fell below 50% 5872 | -9/Mines | Deemed a non-threat by the Exiles lab entrance 5969 | -9/Mines | Assembled infested the area 6043 | -9/Mines | Discovered new exit (range 5) 6054 | -9/Mines | Entered Exiles 6054 | -9/Exiles | Accompanied by 1 ally 6093 | -9/Exiles | Met 8R-AWN 6118 | -9/Exiles | Met EX-HEX 6204 | -9/Exiles | Met EX-DEC 6232 | -9/Exiles | Learned location of Zion (-7) 6287 | -9/Exiles | Discovered new exit (range 14) 6304 | -9/Exiles | Entered Mines 6522 | -8/Mines | Discovered exit to Materials (range 9) 6783 | -8/Mines | Discovered exit to Materials (range 8) 7133 | -8/Mines | Entered Materials 7133 | -8/Materials | Evolved 2 slots: Utility x2 7134 | -8/Materials | Identified exit to Storage 7450 | -8/Materials | Discovered new exit (range 11) 7528 | -8/Materials | Repaired Cld. Ion Engine 7981 | -8/Materials | Garrison activated, responded to threat 8082 | -8/Materials | Garrison activated, responded to threat 8114 | -8/Materials | Lost 3 parts (1n2u) 8386 | -8/Materials | Discovered new exit (range 4) 8419 | -8/Materials | Garrison activated, responded to threat 8634 | -8/Materials | Lost 4 parts (2n1u1w) 8714 | -8/Materials | Learned Storage stockpile data 8759 | -8/Materials | Learned Factory stockpile data 8831 | -8/Materials | Learned Storage stockpile data 8855 | -8/Materials | Learned location of 2 exits from Factory 8891 | -8/Materials | Learned Factory security intel 8900 | -8/Materials | Build established: Scavenger-Mutant 9077 | -8/Materials | Repaired Lyr. Light Armor Plating 9324 | -8/Materials | Discovered exit to Storage (range 10) 9450 | -8/Materials | Entered Storage 9451 | -8/Storage | Identified exit to Factory 9743 | -8/Storage | Build established: Mutant 10186 | -8/Storage | Garrison activated, responded to threat 10232 | -8/Storage | Assisted by bots powering up and referring to "LRC-V3" 10356 | -8/Storage | Entered Factory 10356 | -7/Factory | Accompanied by 9 allies 10356 | -7/Factory | Evolved 2 slots: Propulsion x2 10357 | -7/Factory | Identified exit to Factory 10357 | -7/Factory | Identified exit to Lower Caves 10633 | -7/Factory | Lost 3 allies 10675 | -7/Factory | Build established: Commander-Gladiator 10676 | -7/Factory | Repaired Cld. Ion Engine 10917 | -7/Factory | Repaired Aerolev Unit 11162 | -7/Factory | Lost 3 allies 11230 | -7/Factory | Build established: Gladiator 11730 | -7/Factory | Fabricated Aerolev Unit? 12349 | -7/Factory | Learned location of 1 exit from Lower Caves 12402 | -7/Factory | Learned Factory security intel 12419 | -7/Factory | Entered another Factory area 12419 | -6/Factory | Evolved 2 slots: Utility x2 12721 | -6/Factory | Fabricated Cmb. Airjet (x2) 12790 | -6/Factory | Build established: Hacker-Gladiator 12816 | -6/Factory | Discovered new exit (range 7) 12845 | -6/Factory | Discovered new exit (range 4) 12846 | -6/Factory | Identified exit to Lower Caves 13091 | -6/Factory | Discovered new exit (range 13) 13095 | -6/Factory | Identified exit to Factory 13210 | -6/Factory | Learned Hub_04(d) terminal intel 13273 | -6/Factory | Learned 2 Hub_04(d) zone layouts 13368 | -6/Factory | Learned location of 1 exit from Factory 13401 | -6/Factory | Learned location of 1 exit from Proximity Caves 13433 | -6/Factory | Fabricated Cld. Airjet? 13443 | -6/Factory | Learned 2 Proximity Caves zone layouts 13471 | -6/Factory | Learned 2 Extension zone layouts 13559 | -6/Factory | Learned location of Warlord (-5) 13817 | -6/Factory | Entered Lower Caves 13818 | -6/Lower Caves | Identified exit to Lower Caves 13839 | -6/Lower Caves | Encountered a Warlord checkpoint 13920 | -6/Lower Caves | Learned Factory stockpile data 14031 | -6/Lower Caves | Entered another Lower Caves area 14033 | -6/Lower Caves | Learned 4 Factory zone layouts 14036 | -6/Lower Caves | Spotted B-75 Beast 14042 | -6/Lower Caves | Discovered exit to Factory (range 15) 14191 | -6/Lower Caves | Encountered a Warlord checkpoint 14213 | -6/Lower Caves | Discovered new exit (range 8) 14215 | -6/Lower Caves | Identified exit to Data Miner 14216 | -6/Lower Caves | Entered Data Miner 14216 | -6/Data Miner | Discovered new exit (range 6) 14224 | -6/Data Miner | Met Data Miner 14235 | -6/Data Miner | Learned location of Section 7 (-2) 14235 | -6/Data Miner | Acquired the access code to Warlord's prototype stash 14241 | -6/Data Miner | Received God Mode back door access code from Data Miner 14250 | -6/Data Miner | Identified exit to Proximity Caves 14251 | -6/Data Miner | Entered Proximity Caves 14297 | -5/Proximity Caves | Spotter reported a threat 14407 | -5/Proximity Caves | Spotter reported a threat 14447 | -5/Proximity Caves | Learned Factory interactive machine intel 14461 | -5/Proximity Caves | Entered Factory 14461 | -5/Factory | Evolved 2 slots: Utility x2 14462 | -5/Factory | Identified exit to Upper Caves 14462 | -5/Factory | Identified exit to Extension 14463 | -5/Factory | Identified exit to Factory 14466 | -5/Factory | Loaded intel: 55 interactive machine locations 14533 | -5/Factory | Repaired Mak. Sword 14621 | -5/Factory | Repaired F-cell Engine 14693 | -5/Factory | Repaired Cld. Airjet 15099 | -5/Factory | Loaded intel: 4 garrison access locations 15147 | -5/Factory | Learned Research emergency access door positions 15198 | -5/Factory | System corruption reached 10% 15212 | -5/Factory | Learned Research interactive machine intel 15230 | -5/Factory | Learned location of Hub_04(d) (-5) 15257 | -5/Factory | Learned location of Armory (-3) 15258 | -5/Factory | Lost 3 parts (1p2n) 15296 | -5/Factory | Learned 4 Research zone layouts 15310 | -5/Factory | Discovered exit to Factory (range 14) 15397 | -5/Factory | Incoming investigation squad redirected 15716 | -5/Factory | Core integrity fell below 50% 15728 | -5/Factory | Core integrity fell below 20% 15734 | -5/Factory | Destroyed by C-35 Carver with Carbide Saw Last Messages --------------- 15709_ Power Sword severed. 15711_ P-70 Sage resets C-35 Carver, system corruption cleaned. 15712_ Adv. System Restoration Module purges 1% system corruption (5%). 15712_ Acquired Power Sword. 15712_ Antigrav System destroyed. 15712_ Cmb. Gravmag System severed. 15713_ C-35 Carver destroyed. 15714_ Adv. System Restoration Module purges 1% system corruption (5%). 15715_ Power Sword destroyed. 15716_ Adv. System Restoration Module destroyed. 15716_ Hacking Suite destroyed. 15721_ Imp. Melee Analysis Suite severed. 15725_ System corrupted: Matter fused (-10). 15727_ P-70 Sage resets P-70 Sage, system corruption cleaned. 15728_ Adv. Terrain Scan Processor severed. 15731_ Hacking Suite severed. Map ----- +----------------------------------------------------+ | # ???????????????????????? # | | ######+##+#??????????? ????????????? # | | ???# #????????????????????????? + | | ???# ] #?????????????????????????#############+ | | ???# #????????????????????????????????# | | #??# """ #????????????????????????????????# """" | | ???# """ #?#??????????????????????????????# """" | | ???#! """ #????????????????????????????????# """" | | ???# #????????????????????????????????# """" | | ???# """ ##????????????? ?????????????????# """" | | ???# """ #?############+#?????????????????# """" | | ???#! """ #?# #?????????????????# | | ???# #?# """ #?????????????????# | | ???# #?# "Y" #?????????????????# | | #########+### " " """ #?????????????????# | | + """ #?????????????????# | | # """ #?????????????????######+ | | + #??????????????????????# | | " """ """ # """ """ #??????????????????????# | | " """ """ # """ """ ##?????????????????????# | | " """ """ !# """ """ | #???????????????????????? | | # #???????????????????????? | | " """ """ # ##??????????????????????? | | " """ """ #################??????########??????? | | " """ """ ##????## ! !/#??????# """"""????? | | #??????# @c!######## """""""???? | | #??????# **cp# """"""" #?? | | #### #??????# ! =%p + """"""" #?? | | ?### ^ +??????# m # # #?? | | ???# #??????# # #?## #?? | | ???# #???"??# # #??# #?? | | ???# #??????# # #??#############?? | | ???# #??????# # #############????? | | ??##+##+###+#??????########## # ## | | ??# #???############# # """ ## | | ??# ##??# # # """ ## | | ??# #???# # # """ ![ ## < | | ??# """ """ #???# """""" # # =[ ## | | ??# """ """ #???# """""" + + ] [ = ## | | ??# """ """ #???# """""" # # ## | | ### #???# """""" # ######+###+#### | | ?## ! ##### #^^^##??# #### | | ####################+######## ##??# #####"" | | %%%R #??????# #???# #???#"T | | ##+####### ####### #??????# #???# #???### | | * ### ##???## ######## ##?## ##????# | | #?# #?###?# #?# #????# | | #?# ###???# ### #????# | | / = " #?# #?#???# T ###### | | / " #?# #?????# """ """ """ ### ## # | +----------------------------------------------------+ Best States ------------- Heat Dissipation 40 Energy Generation 19 Energy Capacity 500 Matter Stores 300 Matter Capacity 300 Sight Range 16 Robot Scan Range 15 Terrain Scan Range 20 Terrain Scan Density 210 ECM Strength 1 Jamming Range 12 Armor Coverage 300 Melee Speed Boost 20 Evasion (%) 58 Targeting Accuracy 5 Melee Accuracy 6 Recoil Reduction 3 Offensive Hacking 20 Defensive Hacking 10 Item Schematics ----------------- Plasma Cutter | -9/Materials | Hacked Aerolev Unit | -7/Factory | Scanalyzed Cmb. Airjet | -6/Factory | Hacked Cld. Airjet | -6/Factory | Hacked Combat Drone Bay | -6/Data Miner | Free Lgt. Regenerative Plating | -6/Data Miner | Free Enh. Flexi-carbon Leg | -6/Data Miner | Free Prc. Matter Filter | -6/Data Miner | Free Imp. KE Penetrator | -6/Data Miner | Free Imp. Antigrav System | -6/Data Miner | Free Adv. Target Analyzer | -6/Data Miner | Free Hyp. Mass Driver | -6/Data Miner | Free Adv. Particle Charger | -6/Data Miner | Free Adv. Force Field | -6/Data Miner | Free Enh. Force Lance | -5/Factory | Hacked Cmb. Gravmag System | -5/Factory | Hacked Hardcell Cannon | -5/Factory | Hacked Robot Schematics ------------------ D-63 Destroyer | -6/Data Miner | Free M-22 Extractor | -6/Data Miner | Free Y-64 Sentinel | -6/Data Miner | Free I-36 Angel | -6/Data Miner | Free L-61 Swordsman | -6/Data Miner | Free G-67 Veteran | -6/Data Miner | Free A-27 Freighter | -6/Data Miner | Free A-15 Conveyor | -6/Data Miner | Free Fabricated ------------ Aerolev Unit | x1 | -7/Factory Cmb. Airjet | x2 | -6/Factory Cld. Airjet | x1 | -6/Factory Repaired ---------- Grenade Launcher | 46% | -9/Materials Lgt. Treads | 49% | -9/Materials Cld. Ion Engine | 2% | -8/Materials Lyr. Light Armor Plating | 6% | -8/Materials Cld. Ion Engine | 55% | -7/Factory Aerolev Unit | 70% | -7/Factory Mak. Sword | 20% | -5/Factory F-cell Engine | 79% | -5/Factory Cld. Airjet | 81% | -5/Factory Alien Tech Used ----------------- None Achievements -------------- None Challenges ------------ None Game ------ Seed AutogunSkeletonScrapsphere Manual? 0 Play Time 02:45:38 Cumulative 121.3 hours Start 2025.07.17 @ 19:13:16 End 2025.07.17 @ 22:29:10 Sessions 1 Manual Loads 0 Difficulty Rogue Special Mode None Game No. 94 Rogue 94 Adventurer 0 Explorer 0 Win Type - Total 2 Types 2/0/0/0/0/0/0/0/0/0 Lore% 51 Gallery% 44 Achievement% 47 Wizard Run 0 Options --------- Layout 2 ASCII 0 Keyboard 1 Movement Numpad Keybinds 0 Fullscreen 2 Font 32/SmallcapsGlow Map View 50x44 Zoom Use 0% Tactical HUD 1 Map Filters NONE Filters NONE Steam 1 RUN: c38f8adb-1a29-4ba7-8857-d9753825ceab